bitfinex-derivatives/quotes_SOLF0:USTF0_20250404
["timestamp","ask_amount","ask_price","bid_price","bid_amount"]
[1743772668959,31.20581894,115.42,115.38,0.06403295]
[1743772669669,8.6678,115.39,115.38,0.06403295]
[1743772669865,31.20581894,115.42,115.38,0.06403295]
[1743772670068,8.6674,115.4,115.38,0.06403295]
[1743772670665,8.6678,115.39,115.38,0.06403295]
[1743772671769,343.40581894,115.44,115.38,0.06403295]
[1743772672069,312.2,115.44,115.38,0.06403295]
[1743772672469,8.6653,115.43,115.4,8.6669]
[1743772672666,312.2,115.44,115.39,39.72]
[1743772672868,312.2,115.44,115.4,0.06641104]
[1743772673269,343.40581894,115.44,115.4,0.06641104]
[1743772673468,312.2,115.44,115.4,0.06641104]
[1743772673973,8.6652,115.43,115.4,8.73301104]
[1743772674270,35.92091894,115.48,115.4,0.06641104]
[1743772674465,8.663,115.46,115.42,8.6653]
[1743772674669,35.92091894,115.48,115.42,39.72]
[1743772674868,35.92091894,115.48,115.43,0.0613971]
[1743772675069,312.06,115.49,115.43,0.0613971]
[1743772675772,8.6621,115.47,115.44,8.6637]
[1743772676160,8.6621,115.47,115.44,8.72843407]
[1743772676773,312.06,115.49,115.44,0.06473407]
[1743772677176,312.06,115.49,115.44,8.72863407]
[1743772677374,8.6619,115.47,115.44,8.72863407]
[1743772677772,312.06,115.49,115.44,0.06473407]
[1743772678772,8.6622,115.47,115.44,0.06473407]
[1743772679171,312.06,115.49,115.44,0.06473407]
[1743772679371,8.6621,115.47,115.44,0.06473407]
[1743772679674,312.06,115.49,115.45,39.68]
[1743772679878,4.647,115.52,115.45,39.68]
[1743772680073,8.6613,115.48,115.45,48.3429]
[1743772680370,35.85281894,115.52,115.45,39.73491424]
[1743772680577,8.6625,115.46,115.45,39.73491424]
[1743772680764,8.6625,115.46,115.45,39.68]
[1743772680970,8.6619,115.47,115.45,39.68]
[1743772681369,35.85281894,115.52,115.45,39.74017862]
[1743772681579,8.6623,115.47,115.45,39.68]
[1743772682074,35.85281894,115.52,115.45,39.73750995]
[1743772682271,8.6613,115.48,115.45,39.68]
[1743772682470,35.85281894,115.52,115.47,0.06504469]
[1743772682675,8.661,115.48,115.47,0.06504469]
[1743772683171,8.661,115.48,115.47,4.469e-05]
[1743772683577,79.52581894,115.48,115.37,39.66]
[1743772683880,31.20581894,115.41,115.37,39.66]
[1743772684470,31.20581894,115.41,115.35,8.6703]
[1743772684675,8.72683621,115.4,115.38,8.72803584]
[1743772684979,0.05943621,115.4,115.38,0.05993584]
[1743772685978,8.6699,115.37,115.34,44.1696]
[1743772686172,0.05943621,115.4,115.35,1.59254062]
[1743772686372,39.64,115.42,115.35,1.59254062]
[1743772686875,39.64,115.42,115.34,44.1696]
[1743772687178,0.06686617,115.4,115.37,0.06620545]
[1743772687378,0.06686617,115.4,115.38,48.3082]
[1743772687574,0.06686617,115.4,115.38,39.64]
[1743772687768,0.06686617,115.4,115.38,39.70247923]
[1743772687979,0.06686617,115.4,115.39,8.6678]
[1743772688273,0.06686617,115.4,115.39,10.25982316]
[1743772688681,0.06686617,115.4,115.39,10.2598177]
[1743772689181,386.34751894,115.47,115.39,1.5920177]
[1743772689481,346.70751894,115.47,115.39,1.5920177]
[1743772689782,8.6645,115.44,115.39,1.5920177]
[1743772690078,346.70751894,115.47,115.39,1.5920177]
[1743772690278,0.05888696,115.43,115.4,0.06462544]
[1743772690774,8.72408696,115.43,115.41,8.6662]
[1743772690980,8.72408696,115.43,115.4,0.06462544]
[1743772691378,8.72408696,115.43,115.4,8.73132544]
[1743772691680,0.05888696,115.43,115.41,39.64]
[1743772691876,39.50531894,115.51,115.41,70.84581894]
[1743772692076,79.14531894,115.51,115.42,5.93057481]
[1743772692375,79.14531894,115.51,115.43,8.6645]
[1743772692681,8.6641,115.44,115.41,39.64]
[1743772692887,31.20581894,115.49,115.42,10.2565947]
[1743772693174,31.20581894,115.49,115.41,39.64]
[1743772693379,31.20581894,115.49,115.44,0.05988304]
[1743772693782,8.6633,115.45,115.44,0.05988304]
[1743772695686,31.20581894,115.45,115.4,39.62]
[1743772696788,0.05831222,115.44,115.41,0.06685183]
[1743772697180,8.6661,115.42,115.41,0.06685183]
[1743772699177,8.6654,115.43,115.41,0.06685183]
[1743772699383,0.05831222,115.44,115.41,0.06685183]
[1743772700183,0.05831222,115.44,115.42,39.6]
[1743772700487,319.8625,115.5,115.44,8.6636]
[1743772700680,8.6623,115.47,115.45,39.6]
[1743772701389,311.84,115.5,115.45,39.6]
[1743772701681,311.84,115.5,115.45,39.66309418]
[1743772701886,8.6607,115.49,115.46,8.662]
[1743772702088,311.84,115.5,115.45,39.66309418]
[1743772702983,8.6623,115.47,115.45,39.66309418]
[1743772703190,311.84,115.5,115.45,39.66309418]
[1743772704083,311.84,115.5,115.46,8.6624]
[1743772704387,4.465,115.53,115.45,39.66309418]
[1743772704687,4.465,115.53,115.46,4.639]
[1743772704895,4.465,115.53,115.48,0.05712793]
[1743772705185,4.465,115.53,115.48,39.63712793]
[1743772706388,8.6603,115.49,115.48,39.63712793]
[1743772707084,8.6599,115.5,115.48,39.63712793]
[1743772707387,4.465,115.53,115.48,39.63712793]
[1743772707784,4.465,115.53,115.48,0.05712793]
[1743772707988,31.20581894,115.5,115.42,8.986]
[1743772708289,4.6492,115.49,115.43,39.58]
[1743772708487,4.6492,115.49,115.44,8.6635]
[1743772708686,31.20581894,115.5,115.44,8.6635]
[1743772709083,0.05714203,115.48,115.46,0.06624528]
[1743772709686,8.6618,115.47,115.46,0.06624528]
[1743772709889,0.05714203,115.48,115.46,0.06624528]
[1743772710289,8.6618,115.47,115.46,0.06624528]
[1743772710491,0.05714203,115.48,115.46,39.62624528]
[1743772710690,0.05714203,115.48,115.47,8.6618]
[1743772711190,8.6618,115.47,115.46,39.62624528]
[1743772711396,0.05714203,115.48,115.46,39.62624528]
[1743772711797,8.71854203,115.48,115.46,48.28874528]
[1743772712603,0.05714203,115.48,115.47,8.6618]
[1743772713596,8.71854203,115.48,115.46,48.28834528]
[1743772713903,8.71854203,115.48,115.46,39.62624528]
[1743772713904,0.05714203,115.48,115.46,39.62624528]
[1743772714997,8.6618,115.47,115.46,39.62624528]
[1743772715198,31.26296097,115.48,115.4,4.3697]
[1743772715402,31.20581894,115.48,115.41,39.54]
[1743772715704,8.6645,115.44,115.42,8.6654]
[1743772715900,8.6645,115.44,115.4,43.9097]
[1743772715901,19.45207502,115.45,115.4,43.9097]
[1743772716103,8.6652,115.43,115.41,8.6662]
[1743772716297,19.45207502,115.47,115.4,43.9097]
[1743772716603,8.6655,115.42,115.41,0.06118302]
[1743772716796,8.6655,115.42,115.4,39.54]
[1743772716998,0.06195246,115.43,115.4,39.60162748]
[1743772717702,0.06195246,115.43,115.42,8.6655]
[1743772718001,0.06195246,115.43,115.4,0.06162748]
[1743772720800,0.06195246,115.43,115.4,8.72832748]
[1743772721097,0.06195246,115.43,115.4,0.06162748]
[1743772721300,0.06195246,115.43,115.42,8.6655]
[1743772721802,8.6621,115.47,115.45,8.6631]
[1743772721998,311.72,115.48,115.45,8.6631]
[1743772722203,311.72,115.48,115.42,4.6231]
[1743772722600,4.4161,115.51,115.42,35.74660938]
[1743772722797,4.4161,115.51,115.43,1.59134044]
[1743772722994,0.06096008,115.48,115.45,0.0564697]
[1743772723699,8.72246008,115.48,115.45,0.0564697]
[1743772724003,0.06096008,115.48,115.45,0.0564697]
[1743772725400,0.06096008,115.48,115.46,8.6622]
[1743772725694,0.06096008,115.48,115.45,0.0564697]
[1743772726696,8.6621,115.47,115.45,8.7196697]
[1743772726895,8.6621,115.47,115.45,0.0564697]
[1743772727102,8.6625,115.46,115.45,0.0564697]
[1743772727408,0.06096008,115.48,115.45,0.0564697]
[1743772727805,8.6621,115.47,115.45,8.7196697]
[1743772728006,0.06096008,115.48,115.45,0.0564697]
[1743772728306,8.6625,115.46,115.45,0.0564697]
[1743772728506,0.06096008,115.48,115.45,0.0564697]
[1743772729405,8.72246008,115.48,115.46,8.6622]
[1743772729598,8.72246008,115.48,115.45,0.0564697]
[1743772729802,0.06096008,115.48,115.45,0.0564697]
[1743772730106,0.06096008,115.48,115.47,8.6618]
[1743772731406,0.06096008,115.48,115.45,0.0564697]
[1743772732307,8.72256008,115.48,115.45,0.0564697]
[1743772732607,0.06096008,115.48,115.45,8.7192697]
[1743772733308,8.72246008,115.48,115.46,8.6623]
[1743772733509,0.06096008,115.48,115.46,8.6623]
[1743772734216,0.06096008,115.48,115.47,8.6618]
[1743772734801,8.72236008,115.48,115.46,8.6622]
[1743772735508,0.06096008,115.48,115.47,8.6618]
[1743772735910,0.06096008,115.48,115.47,48.1418]
[1743772736510,0.06096008,115.48,115.47,39.48]
[1743772737015,0.06096008,115.48,115.45,0.0564697]
[1743772737215,0.06096008,115.48,115.46,8.6625]
[1743772737418,0.06096008,115.48,115.45,0.0564697]
[1743772737811,0.06096008,115.48,115.47,8.6618]
[1743772740111,0.06096008,115.48,115.45,0.0564697]
[1743772741309,39.52096008,115.48,115.45,0.0564697]
[1743772741713,0.06096008,115.48,115.45,0.0564697]
[1743772742008,8.6591,115.51,115.46,39.46]
[1743772742213,8.6591,115.51,115.46,48.7606]
[1743772742413,4.3436,115.54,115.47,19.43911453]
[1743772742608,8.6589,115.51,115.47,19.43911453]
[1743772742914,19.43911453,115.53,115.46,48.7606]
[1743772743115,8.6599,115.5,115.46,48.7606]
[1743772743415,19.43911453,115.53,115.48,0.06640846]
[1743772743617,19.43911453,115.51,115.48,0.06640846]
[1743772743921,19.43911453,115.49,115.48,0.06640846]
[1743772744222,28.09941453,115.49,115.48,0.06640846]
[1743772745023,8.6603,115.49,115.48,0.06640846]
[1743772745213,8.6599,115.5,115.48,0.06640846]
[1743772745414,27.30731453,115.55,115.49,8.6603]
[1743772745614,63.31871453,115.55,115.47,19.43911453]
[1743772745822,382.22058709,115.56,115.51,0.06321836]
[1743772746221,342.78058709,115.56,115.51,0.06321836]
[1743772746420,8.6577,115.53,115.51,0.06321836]
[1743772746923,311.7,115.56,115.51,0.06321836]
[1743772747324,311.7,115.56,115.52,8.6574]
[1743772747621,311.7,115.56,115.51,0.06321836]
[1743772747822,311.7,115.56,115.52,8.6577]
[1743772748125,8.6562,115.55,115.51,0.06321836]
[1743772748318,311.7,115.56,115.53,8.6567]
[1743772748520,70.52058709,115.59,115.53,8.6567]
[1743772748824,70.52058709,115.59,115.53,8.72035484]
[1743772748825,8.6558,115.55,115.53,8.72035484]
[1743772749018,8.6558,115.55,115.53,0.06365484]
[1743772749219,70.52058709,115.59,115.53,0.06365484]
[1743772749417,8.6565,115.54,115.53,0.06365484]
[1743772749816,8.66,115.5,115.48,8.6606]
[1743772750025,35.71208709,115.55,115.46,39.42]
[1743772750222,35.71208709,115.55,115.49,8.66]
[1743772750416,8.6589,115.51,115.49,8.66]
[1743772750823,8.6589,115.51,115.48,8.6606]
[1743772751027,0.06209774,115.51,115.49,0.06249238]
[1743772751327,31.08058709,115.57,115.49,39.48249238]
[1743772751529,42.9129,115.58,115.52,8.6577]
[1743772751825,31.08058709,115.55,115.5,4.6008]
[1743772752020,70.50058709,115.55,115.49,39.42]
[1743772752223,70.50058709,115.55,115.46,44.0605]
[1743772752432,70.50058709,115.55,115.51,0.0660844]
[1743772753530,79.25848709,115.55,115.51,0.0660844]
[1743772754931,8.658,115.52,115.51,0.0660844]
[1743772757427,311.62,115.56,115.51,0.0660844]
[1743772757623,31.08058709,115.61,115.52,39.4]
[1743772757823,31.08058709,115.61,115.53,13.1726]
[1743772758024,8.6559,115.55,115.53,13.1726]
[1743772758233,70.48058709,115.59,115.56,1.049e-05]
[1743772758423,31.08058709,115.57,115.52,39.4]
[1743772758619,8.6573,115.53,115.52,39.4]
[1743772758825,35.78118709,115.58,115.52,39.4]
[1743772759129,35.78118709,115.58,115.52,48.0576]
[1743772759325,0.05986253,115.56,115.54,0.05666615]
[1743772759629,8.6558,115.55,115.54,0.05666615]
[1743772759830,0.05986253,115.56,115.54,0.05666615]
[1743772760423,0.05986253,115.56,115.55,8.6558]
[1743772760628,0.05986253,115.56,115.54,0.05666615]
[1743772761029,0.05986253,115.56,115.55,8.6558]
[1743772761331,0.05986253,115.56,115.54,4.44416615]
[1743772761629,8.71526253,115.56,115.54,13.10026615]
[1743772761824,0.05986253,115.56,115.54,13.10026615]
[1743772762018,0.05986253,115.56,115.54,4.44416615]
[1743772762224,0.05986253,115.56,115.55,8.6558]
[1743772764033,0.05986253,115.56,115.54,17.64116615]
[1743772764239,0.05986253,115.56,115.54,0.05666615]
[1743772764733,8.6558,115.55,115.54,0.05666615]
[1743772766031,8.71536253,115.56,115.54,0.05666615]
[1743772766331,8.71536253,115.56,115.54,8.71286615]
[1743772766535,8.6558,115.55,115.54,0.05666615]
[1743772768034,0.05986253,115.56,115.54,0.05666615]
[1743772769133,0.05986253,115.56,115.54,8.71276615]
[1743772769539,0.05986253,115.56,115.54,0.05666615]
[1743772769733,8.6558,115.55,115.54,0.05666615]
[1743772771941,8.71516253,115.56,115.54,0.05666615]
[1743772772640,8.71516253,115.56,115.54,8.71286615]
[1743772772846,8.6558,115.55,115.54,0.05666615]
[1743772776041,8.71526253,115.56,115.54,0.05666615]
[1743772776342,0.05986253,115.56,115.54,0.05666615]
[1743772776643,8.6558,115.55,115.54,0.05666615]
[1743772776844,19.41689448,115.55,115.49,13.712]
[1743772777041,19.41689448,115.53,115.49,13.712]
[1743772777247,19.41689448,115.53,115.49,4.6157]
[1743772777846,8.6588,115.51,115.49,13.2757]
[1743772778047,0.05476271,115.52,115.5,0.06194503]
[1743772778446,0.05476271,115.52,115.51,8.6588]
[1743772779545,19.41689448,115.57,115.53,8.6572]
[1743772780045,39.32,115.58,115.51,39.32]
[1743772780249,19.41689448,115.59,115.52,21.00684314]
[1743772780452,19.41689448,115.59,115.53,1.58994866]
[1743772780746,0.06100907,115.57,115.55,8.6553]
[1743772781151,8.71560907,115.57,115.55,8.6553]
[1743772781753,0.06100907,115.57,115.54,39.37904918]
[1743772782252,311.62,115.62,115.58,8.6531]
[1743772782653,8.652,115.61,115.58,8.6531]
[1743772782847,311.62,115.62,115.58,8.6531]
[1743772783250,8.6521,115.6,115.59,0.0582876]
[1743772786854,8.655,115.56,115.54,8.6561]
[1743772787054,19.41689448,115.59,115.53,39.3]
[1743772787651,19.41689448,115.59,115.55,8.6554]
[1743772787857,0.05576499,115.58,115.56,0.06398992]
[1743772788458,8.6543,115.57,115.56,0.06398992]
[1743772790152,8.657,115.54,115.51,9.2126]
[1743772790356,19.41689448,115.55,115.51,4.6007]
[1743772790656,19.41689448,115.55,115.5,47.9388]
[1743772790858,19.41689448,115.55,115.5,39.28]
[1743772791058,19.41689448,115.57,115.5,39.28]
[1743772791264,19.41689448,115.57,115.51,8.6584]
[1743772791564,19.47579903,115.55,115.52,0.0601671]
[1743772791763,8.71480455,115.55,115.53,8.6568]
[1743772791959,0.05890455,115.55,115.53,8.6568]
[1743772792160,0.05890455,115.55,115.52,0.0601671]
[1743772793465,8.71500455,115.55,115.52,0.0601671]
[1743772793766,5.62429843,115.54,115.52,0.0601671]
[1743772793961,5.62429843,115.54,115.52,8.7178671]
[1743772794162,8.71510455,115.55,115.52,0.0601671]
[1743772794563,19.47579903,115.55,115.52,0.0601671]
[1743772794972,0.05890455,115.55,115.52,0.0601671]
[1743772795164,0.05890455,115.55,115.53,8.6573]
[1743772795470,5.62727377,115.54,115.53,8.6573]
[1743772796174,5.62727377,115.54,115.52,8.7178671]
[1743772796363,5.62727377,115.54,115.52,0.0601671]
[1743772796565,8.71510455,115.55,115.52,0.0601671]
[1743772796869,0.05890455,115.55,115.52,0.0601671]
[1743772797473,5.6282716,115.54,115.52,0.0601671]
[1743772797664,14.2851716,115.54,115.52,0.0601671]
[1743772797864,5.6282716,115.54,115.52,0.0601671]
[1743772798073,5.6282716,115.53,115.52,0.0601671]
[1743772798274,14.2855716,115.53,115.52,0.0601671]
[1743772799676,8.6592,115.51,115.48,4.4915]
[1743772800071,8.6592,115.51,115.49,8.6599]
[1743772800776,5.62891443,115.5,115.49,8.724634]
[1743772801275,14.28841443,115.5,115.49,0.064734]
[1743772801477,5.62891443,115.5,115.49,0.064734]
[1743772801679,1.443e-05,115.5,115.49,0.064734]
[1743772801975,1.443e-05,115.5,115.49,8.725034]
[1743772802177,0.06049284,115.51,115.49,0.064734]
[1743772802373,0.06049284,115.51,115.5,8.6595]
[1743772803676,0.06049284,115.51,115.49,8.724534]
[1743772803877,8.71959284,115.51,115.49,8.724534]
[1743772804374,0.06049284,115.51,115.49,8.724534]
[1743772805078,8.71959284,115.51,115.49,8.724534]
[1743772805276,0.06049284,115.51,115.49,0.064734]
[1743772805873,8.71969284,115.51,115.49,8.724734]
[1743772806174,0.06049284,115.51,115.49,0.064734]
[1743772806376,8.6595,115.5,115.49,0.064734]
[1743772807070,0.06049284,115.51,115.49,0.064734]
[1743772808175,8.6595,115.5,115.49,0.064734]
[1743772809778,8.6618,115.47,115.45,8.8562]
[1743772810074,8.6618,115.47,115.42,8.7291]
[1743772810277,31.07198161,115.49,115.44,8.6635]
[1743772810574,8.6624,115.47,115.42,13.1389]
[1743772810778,8.6624,115.47,115.42,52.3789]
[1743772810974,0.05695592,115.46,115.43,0.05687885]
[1743772811576,0.05695592,115.46,115.43,8.72117885]
[1743772811785,8.71975592,115.46,115.43,0.05687885]
[1743772812076,8.71975592,115.46,115.44,8.6637]
[1743772812276,8.71975592,115.46,115.43,0.05687885]
[1743772812473,8.6635,115.45,115.43,8.72137885]
[1743772812878,8.6635,115.45,115.43,0.05687885]
[1743772813083,8.6635,115.45,115.43,8.72157885]
[1743772813575,5.51649738,115.44,115.39,36.23114522]
[1743772813775,31.07198161,115.42,115.39,36.23114522]
[1743772813979,31.07198161,115.42,115.34,334.82486933]
[1743772813980,8.6685,115.39,115.34,334.82486933]
[1743772814181,70.31198161,115.42,115.35,1.59230534]
[1743772814479,8.6689,115.38,115.34,334.82486933]
[1743772814680,0.05536747,115.4,115.37,0.05552535]
[1743772814979,78.97558161,115.45,115.37,0.05552535]
[1743772815176,6.892e-05,115.4,115.39,31.07198161]
[1743772815477,8.6623,115.47,115.39,40.83214764]
[1743772815782,8.6623,115.47,115.4,1.59214764]
[1743772816081,311.66,115.48,115.4,32.66412925]
[1743772816272,311.66,115.48,115.41,1.59214764]
[1743772816472,35.64858161,115.51,115.43,0.05986115]
[1743772816676,1.714e-05,115.45,115.43,0.05986115]
[1743772816881,35.64858161,115.51,115.43,1.59117128]
[1743772817080,31.07198161,115.49,115.38,31.07198161]
[1743772817280,31.07198161,115.47,115.39,40.83144129]
[1743772817474,31.07198161,115.47,115.42,8.665]
[1743772817681,8.6638,115.45,115.42,8.665]
[1743772817875,0.05752632,115.46,115.43,0.05958588]
[1743772818071,8.6629,115.46,115.43,8.72398588]
[1743772818282,0.05742612,115.46,115.43,0.05958588]
[1743772818583,0.05742612,115.46,115.45,8.6633]
[1743772821582,8.72032612,115.46,115.43,39.29958588]
[1743772822379,0.05742612,115.46,115.43,39.29958588]
[1743772822578,0.05742612,115.46,115.43,0.05958588]
[1743772822773,31.07198161,115.45,115.43,0.05958588]
[1743772822980,8.6665,115.41,115.39,47.8874]
[1743772823378,73.81488161,115.45,115.39,39.22]
[1743772823581,8.666,115.42,115.39,47.8874]
[1743772823884,73.81488161,115.45,115.39,39.22]
[1743772824083,8.667,115.4,115.39,39.27678907]
[1743772824285,8.667,115.4,115.39,0.05678907]
[1743772826783,39.73198161,115.4,115.34,240.09143831]
[1743772826979,31.07198161,115.38,115.34,240.09143831]
[1743772827174,8.6711,115.35,115.31,39.22]
[1743772827378,35.30308161,115.38,115.3,39.22]
[1743772827778,0.06348811,115.35,115.31,8.6732]
[1743772827983,0.06348811,115.35,115.33,0.06109417]
[1743772828285,8.672,115.34,115.33,0.06109417]
[1743772829180,8.6742,115.31,115.28,4.412]
[1743772829786,8.6733,115.32,115.29,8.6752]
[1743772830486,8.6739,115.31,115.29,0.06134854]
[1743772831190,8.73958739,115.32,115.29,8.73664854]
[1743772831891,8.6738,115.31,115.29,0.06134854]
[1743772832085,31.138169,115.32,115.29,0.06134854]
[1743772832291,8.6745,115.3,115.29,0.06134854]
[1743772832582,39.74648161,115.3,115.29,0.06134854]
[1743772833888,8.6745,115.3,115.29,0.06134854]
[1743772834089,8.6742,115.31,115.29,0.06134854]
[1743772834281,343.078169,115.32,115.29,0.06134854]
[1743772834486,312.00618739,115.32,115.3,8.6745]
[1743772835088,312.00618739,115.32,115.29,0.06134854]
[1743772835483,0.06618739,115.32,115.29,0.06134854]
[1743772835693,0.06618739,115.32,115.29,39.28134854]
[1743772835988,0.06618739,115.32,115.3,5.82580314]
[1743772836290,0.06618739,115.32,115.31,8.6738]
[1743772836486,0.06618739,115.32,115.31,10.26688198]
[1743772836692,8.6697,115.37,115.34,8.6712]
[1743772836992,31.07198161,115.36,115.3,4.2324]
[1743772837291,382.33198161,115.38,115.3,4.2324]
[1743772837686,8.6697,115.37,115.34,8.6714]
[1743772837883,382.33198161,115.38,115.34,8.6714]
[1743772837884,0.05699795,115.35,115.34,8.6714]
[1743772838089,0.05699795,115.35,115.33,0.06659909]
[1743772838395,8.72789795,115.35,115.33,0.06659909]
[1743772838590,0.05699795,115.35,115.33,0.06659909]
[1743772838792,0.05699795,115.35,115.33,8.73849909]
[1743772839095,0.05699795,115.35,115.33,0.06659909]
[1743772840697,8.6715,115.34,115.33,0.06659909]
[1743772842894,39.74348161,115.34,115.33,0.06659909]
[1743772843091,78.95198161,115.34,115.29,1.59329389]
[1743772843297,31.07198161,115.31,115.25,47.8778]
[1743772843492,8.6768,115.28,115.25,47.8778]
[1743772843796,8.6768,115.28,115.25,8.6778]
[1743772844296,8.73457651,115.28,115.25,8.74047722]
[1743772844792,8.6771,115.27,115.25,0.06267722]
[1743772844994,0.05777651,115.28,115.25,0.06267722]
[1743772845395,8.6775,115.26,115.25,0.06267722]
[1743772846498,31.07198161,115.27,115.21,10.27522249]
[1743772846798,31.07198161,115.27,115.22,1.59432249]
[1743772846999,8.679,115.25,115.22,8.6805]
[1743772847199,39.2,115.28,115.2,43.5713]
[1743772847493,8.0188,115.3,115.24,8.6785]
[1743772847494,8.6772,115.27,115.24,8.6785]
[1743772847699,0.06566853,115.25,115.24,8.6785]
[1743772848400,0.06566853,115.25,115.23,47.93853105]
[1743772848902,0.06566853,115.25,115.23,39.25913105]
[1743772849399,8.6791,115.24,115.23,0.05913105]
[1743772853604,8.6791,115.24,115.19,4.6233]
[1743772853605,8.6821,115.2,115.19,4.6233]
[1743772853808,70.27198161,115.25,115.19,4.6233]
[1743772854206,8.6818,115.21,115.19,4.6233]
[1743772854808,8.6821,115.2,115.19,4.67933585]
[1743772855107,8.6821,115.2,115.19,6.27400891]
[1743772855907,8.6821,115.2,115.19,1.65070891]
[1743772856107,8.6821,115.2,115.19,0.05603585]
[1743772859500,8.6821,115.2,115.19,3.585e-05]
[1743772859702,31.13235302,115.21,115.14,1.59520836]
[1743772859907,31.07198161,115.19,115.13,12.9627]
[1743772860109,70.27198161,115.19,115.14,1.59525903]
[1743772860311,8.685,115.17,115.14,1.59525903]
[1743772860512,70.27198161,115.19,115.15,1.59525884]
[1743772861111,0.06120884,115.18,115.16,0.05575764]
[1743772861408,70.27198161,115.21,115.16,1.59525884]
[1743772861713,0.06479343,115.18,115.16,0.05506094]
[1743772861911,8.74869343,115.18,115.16,0.05506094]
[1743772862109,0.06479343,115.18,115.16,0.05506094]
[1743772862911,0.06479343,115.18,115.17,8.6843]
[1743772863111,0.06479343,115.18,115.17,1.59498496]
[1743772863714,0.06479343,115.18,115.16,1.6500459]
[1743772863916,0.06479343,115.18,115.17,1.59498496]
[1743772864215,0.06479343,115.18,115.17,8.6843]
[1743772864415,0.06479343,115.18,115.17,10.27928496]
[1743772864611,8.6815,115.21,115.18,8.683]
[1743772864808,321.1275,115.24,115.17,1.59498496]
[1743772865115,321.1275,115.24,115.18,1.59489963]
[1743772865318,78.90578161,115.27,115.19,1.59489963]
[1743772865512,70.25198161,115.27,115.2,4.5992]
[1743772865712,0.05828889,115.24,115.23,8.6798]
[1743772867214,31.07198161,115.29,115.23,8.6798]
[1743772867215,31.07198161,115.31,115.23,1.59414193]
[1743772867415,5.51444001,115.3,115.24,70.25198161]
[1743772867719,5.51444001,115.3,115.25,6.16194193]
[1743772868123,31.07198161,115.31,115.25,4.5678]
[1743772868416,31.13260362,115.29,115.26,0.06514705]
[1743772869319,5.52606358,115.28,115.26,0.06514705]
[1743772869917,5.52606358,115.28,115.27,8.6768]
[1743772870117,0.06062201,115.29,115.26,0.06514705]
[1743772870318,0.06062201,115.29,115.26,1.65891842]
[1743772871319,0.06062201,115.29,115.27,8.6764]
[1743772871718,8.6726,115.33,115.27,39.16]
[1743772871922,312.4,115.35,115.28,1.59346119]
[1743772872318,343.47198161,115.35,115.29,8.6749]
[1743772872518,5.54009252,115.34,115.29,8.6749]
[1743772873021,5.59619366,115.33,115.3,0.057428]
[1743772873220,5.54009252,115.33,115.3,0.057428]
[1743772873420,8.6736,115.32,115.3,0.057428]
[1743772874019,8.6738,115.31,115.3,0.057428]
[1743772874319,31.07198161,115.31,115.25,4.5678]
[1743772874620,31.07198161,115.29,115.21,43.4412]
[1743772874822,31.07198161,115.29,115.22,1.59419647]
[1743772875218,5.54272091,115.28,115.23,8.6794]
[1743772875415,0.05517692,115.27,115.24,0.06300839]
[1743772875723,0.05517692,115.27,115.24,39.20300839]
[1743772875924,0.05517692,115.27,115.25,1.59388025]
[1743772876125,0.05517692,115.27,115.24,39.20300839]
[1743772876426,5.54862871,115.31,115.28,8.676]
[1743772876629,8.6752,115.3,115.27,39.14]
[1743772876924,39.14,115.33,115.28,8.676]
[1743772877127,8.6743,115.31,115.28,8.676]
[1743772877322,0.06076706,115.31,115.28,0.05489509]
[1743772877528,312.4,115.35,115.28,1.64825682]
[1743772877724,8.6713,115.35,115.28,1.64825682]
[1743772877923,8.6713,115.35,115.32,8.6727]
[1743772878227,70.21198161,115.39,115.31,39.14]
[1743772878416,5.54455546,115.38,115.33,8.6719]
[1743772878620,8.6709,115.35,115.33,8.6719]
[1743772878822,8.6709,115.35,115.34,0.06111936]
[1743772879420,8.72641365,115.36,115.34,0.06111936]
[1743772879623,8.72641365,115.36,115.35,8.6708]
[1743772879624,0.05591365,115.36,115.35,8.6708]
[1743772881531,0.05591365,115.36,115.34,47.85221936]
[1743772882124,0.05591365,115.36,115.34,39.18111936]
[1743772882832,0.05591365,115.36,115.35,8.6708]
[1743772883032,312.3,115.4,115.34,39.18111936]
[1743772883234,320.9677,115.4,115.37,8.6692]
[1743772883430,40.08758161,115.43,115.35,1.59239851]
[1743772883624,9.0156,115.43,115.34,70.19198161]
[1743772883833,8.6661,115.42,115.38,8.6678]